Cogmind - Beta 14 @@@ ROGUE MODE // 2024.10.28 @ 22:33:04 Player: KURIIRI Result: Destroyed by as-81741 with Assembled Rifle Performance ------------- Evolutions (0) 0 Regions Visited (2) 400 Robots Destroyed (18) 90 Value Destroyed (464) 464 Prototype IDs (1) 20 Alien Tech Used (0) 0 Bonus (0) 0 TOTAL SCORE: 974 Bonus ------- None Cogmind --------- Core Integrity 0/250 Matter 20/300 Energy 100/100 System Corruption 0% Temperature Cool (0) Movement Treading (240) Ox1 Location -10/Mines Parts ------- > --- POWER (1) -------- (None) > --- PROPULSION (2) --- Light Treads > --- UTILITY (2) ------ Large Storage Unit Utility Shielding > --- WEAPON (2) ------- Autogun Autogun > --- INVENTORY (15) --- Ion Engine Ion Engine Seismic Detector Autogun Mace Peak State ------------ > --- POWER ------------ Ion Engine > --- PROPULSION ------- Light Treads Light Treads > --- UTILITY ---------- Small Storage Unit Utility Shielding > --- WEAPON ----------- Autogun Mace > --- INVENTORY -------- Ion Engine Ion Engine Seismic Detector Autogun Autogun Autogun Grenade Launcher Grenade Launcher [Rating: 10] Favorites ----------- Power Ion Engine Engine Ion Engine Propulsion Light Treads Treads Light Treads Flight Unit Improved Flight Unit Utility Utility Shielding Storage Small Storage Unit Protection Utility Shielding Weapon Autogun Energy Gun EM Pulse Gun Ballistic Gun Autogun Launcher Grenade Launcher Impact Weapon Mace Build | -11 -10 -10 ------- Run | Yrd Mat Min Slots Evolved . | . . . Power . | . . . Propulsion . | . . . Utility . | . . . Weapon . | . . . Parts Attached 18 | 6 7 5 Power 1 | 1 . . Engine 1 | 1 . . Core . | . . . Reactor . | . . . Propulsion 5 | 2 2 1 Treads 4 | 2 1 1 Leg . | . . . Wheel . | . . . Hover . | . . . Flight 1 | . 1 . Utility 3 | 1 2 . Device . | . . . Storage 2 | 1 1 . Processor . | . . . Hackware . | . . . Protection 1 | . 1 . Artifact . | . . . Weapon 9 | 2 3 4 Energy Gun 2 | 1 1 . Energy Cannon . | . . . Ballistic Gun 4 | 1 1 2 Ballistic Cannon . | . . . Launcher 2 | . . 2 Special Weapon . | . . . Impact Weapon 1 | . 1 . Slashing Weapon . | . . . Piercing Weapon . | . . . Special Melee Weapon . | . . . Unidentified Prototypes 1 | . 1 . Parts Lost 7 | . 1 6 Power 1 | . . 1 Propulsion 2 | . . 2 Utility . | . . . Weapon 4 | . 1 3 Highest Loss Streak 6 | . 1 6 To Critical Strikes . | . . . Average Slot Usage (%) 96 | . 98 75 Engine 13 | . 14 5 Treads 27 | . 28 18 Storage 14 | . 14 14 Protection 12 | . 12 14 Energy Gun 3 | . 3 . Ballistic Gun 14 | . 14 14 Impact Weapon 9 | . 10 1 Peak Build Rating 10 | 6 10 10 Average Rating 8 | 4 9 7 On Entrance 5 | . 6 10 Naked Turns . | . . . Heaviest Build 32 | 13 31 32 Greatest Support 40 | 40 40 40 Greatest Overweight (x) 3 | 3 . 1 Average Overweight (x) . | . . . Largest Inventory Capacity 15 | 8 15 15 Average Capacity 10 | 7 10 15 Most Carried 9 | 1 9 9 Average Carried 7 | . 7 7 Final Capacity 15 | 8 15 15 Final Carried 9 | 1 9 5 Class Distribution -------------------- 100% | Mutant Dominant Class ---------------- Mutant | -10/Materials Mutant | -10/Mines Resources | -11 -10 -10 ----------- Run | Yrd Mat Min Matter Collected 364 | 260 104 . Remotely . | . . . Salvage Created 690 | . 643 47 Parts 28 | . 28 . Haulers Intercepted 2 | . 2 . Recyclers Shooed . | . . . Parts Field Recycled . | . . . Retrieved Matter . | . . . Parts Self-Destructed . | . . . Prevented . | . . . Kills | -11 -10 -10 ------- Run | Yrd Mat Min Combat Hostiles Destroyed 28 | . 12 16 Melee 3 | . 3 . Guns 8 | . 7 1 AOE 15 | . . 15 Classes Destroyed 7 | . 6 1 Hauler 2 | . 2 . Recycler 1 | . 1 . Operator 1 | . 1 . Watcher 2 | . 2 . Swarmer 2 | . 2 . Grunt 10 | . 10 . Assembled 16 | . . 16 Best Kill Streak 16 | . 3 16 Combat Bots Only 16 | . 3 16 Max Kills in Single Turn 2 | . 1 2 Gunslinging . | . . . Exploded 2 | . . 2 Melee 1 | . 1 . Uniques/NPCs Destroyed . | . . . Combat | -11 -10 -10 -------- Run | Yrd Mat Min Hostile Shots Fired 142 | . 63 79 Missed 49 | . 18 31 Damage Taken 1312 | . 535 777 Core 255 | . 98 157 Absorbed by Shields . | . . . Redirected to Shielding 12 | . 6 6 Core Remaining (%) 100 | 100 . . Volleys Fired 68 | . 44 24 Largest 2 | . 2 2 Hottest 60 | . 60 53 Shots Fired 102 | . 69 33 Gun 86 | . 69 17 Cannon . | . . . Launcher 16 | . . 16 Special . | . . . Kinetic 61 | . 44 17 Thermal 3 | . 3 . Explosive 16 | . . 16 Electromagnetic 22 | . 22 . Robot Hit Streak 6 | . 6 4 Robot Miss Streak 4 | . 4 4 Penetration Max . | . . . Secondary Targets 1 | . 1 . Max Gunslinging Chain 1 | . 1 . Shots Hit Robots 74 | . 62 12 Core Hits 60 | . 21 39 Critical Kills 1 | . 1 . Critical Parts Destroyed 2 | . 2 . Critical Strikes 3 | . 3 . Destroy 1 | . 1 . Smash 2 | . 2 . Melee Attacks 34 | . 34 . Impact 34 | . 34 . Slashing . | . . . Piercing . | . . . Sneak Attacks 5 | . 5 . Combat Hostiles 1 | . 1 . Follow-up Attacks . | . . . Damage Inflicted 2448 | . 1317 1131 Guns 525 | . 416 109 Cannons . | . . . Explosions 1022 | . . 1022 Melee 901 | . 901 . Ramming . | . . . Kinetic 351 | . 242 109 Thermal 45 | . 22 23 Explosive 999 | . . 999 Electromagnetic 152 | . 152 . Impact 901 | . 901 . Slashing . | . . . Piercing . | . . . Highest Corruption . | . . . Average Corruption . | . . . Corruption Purged . | . . . Corruption Blocked . | . . . Overload Shots . | . . . Overflow Damage 297 | . 230 67 Projectiles . | . . . Explosions 67 | . . 67 Melee 230 | . 230 . Knockbacks 6 | . 6 . Impact 6 | . 6 . Kinetic . | . . . Secondary . | . . . Self-Inflicted Damage 124 | . . 124 Shots 4 | . . 4 Rammed . | . . . Targets Rammed . | . . . Kicked . | . . . Crushed . | . . . Highest Temperature 100 | . 100 18 Average Temperature 30 | . 32 12 Received Heat Transfer 315 | . 255 60 Siege Activations . | . . . Robots Corrupted 5 | . 5 . Combat Hostiles 2 | . 2 . Parts Fried 7 | . 7 . Impact Corruptions 12 | . 12 . Robots Melted . | . . . Combat Hostiles . | . . . Parts Melted . | . . . Heat Transferred 150 | . 50 100 Parts Sabotaged . | . . . Parts Stolen . | . . . Parts Stripped . | . . . Power Chain Reactions . | . . . Alert | -11 -10 -10 ------- Run | Yrd Mat Min Peak Influence 257 | . 257 73 Initial 38 | . . 38 Average 92 | . 101 42 Maximum Alert Level 1 | . 1 . Low Security (%) 93 | 100 92 100 Level 1 6 | . 7 . Level 2 . | . . . Level 3 . | . . . Level 4 . | . . . Level 5 . | . . . High Security . | . . . Max Security . | . . . Squads Dispatched 7 | . 7 . Investigation 5 | . 5 . Extermination . | . . . Reinforcement 2 | . 2 . Assault . | . . . Garrison . | . . . Intercept . | . . . Searches Triggered . | . . . Construction Impeded . | . . . Haulers Reinforced . | . . . Active Scanning Responses . | . . . Cargo Convoy Interrupts . | . . . Stealth | -11 -10 -10 --------- Run | Yrd Mat Min Distress Signals 1 | . 1 . Communications Jammed . | . . . Distress Signals . | . . . Times Spotted 39 | . 20 19 Peak Tracking Total 8 | . 4 8 Tactical Retreats . | . . . Traps | -11 -10 -10 ------- Run | Yrd Mat Min Traps Triggered 1 | . 1 . Indirectly . | . . . Trap Hack Attempts . | . . . Triggered . | . . . Disarmed . | . . . Reprogrammed . | . . . Reused . | . . . Traps Extracted . | . . . Installed . | . . . Triggered 2 | . 2 . Machines | -11 -10 -10 ---------- Run | Yrd Mat Min Machines Disabled 2 | . 1 1 Max in Single Turn 1 | . 1 1 Machines Repaired . | . . . Machines Dismantled . | . . . Machines Sabotaged . | . . . Overloaded Fab Kills . | . . . Hacking | -11 -10 -10 --------- Run | Yrd Mat Min Machines Accessed 7 | . 7 . Terminals 5 | . 5 . Fabricators . | . . . Repair Stations . | . . . Recycling Units 2 | . 2 . Scanalyzers . | . . . Garrison Access . | . . . Total Hacks 22 | . 22 . Successful 9 | . 9 . Failed 12 | . 12 . Catastrophic 2 | . 2 . Database Lockouts 1 | . 1 . Manual 18 | . 18 . Terminals 19 | . 19 . Fabricators . | . . . Repair Stations . | . . . Recycling Units 3 | . 3 . Scanalyzers . | . . . Garrison Access . | . . . Terminal Hacks 4 | . 4 . Robot Analysis 1 | . 1 . Terminal Index 1 | . 1 . Unreport Threat 1 | . 1 . Recall Investigation 1 | . 1 . Fabricator Hacks . | . . . Repair Station Hacks . | . . . Recycling Unit Hacks . | . . . Scanalyzer . | . . . Garrison Access Hacks . | . . . Unauthorized Hacks 5 | . 5 . Terminals 3 | . 3 . Botnet 3 | . 3 . Fabricators . | . . . Repair Stations . | . . . Recycling Units 2 | . 2 . Tunnel 2 | . 2 . Scanalyzers . | . . . Garrison Access . | . . . Data Cores Recovered . | . . . Used . | . . . Hacking Detections 6 | . 6 . Full Trace Events 2 | . 2 . Feedback Events . | . . . Feedback Blocked . | . . . Robot Schematics Acquired . | . . . Robots Built . | . . . Authchips . | . . . Time . | . . . Total Robot Build Rating . | . . . Part Schematics Acquired . | . . . Parts Built . | . . . Authchips . | . . . Time . | . . . Total Part Build Rating . | . . . Parts Repaired . | . . . Time . | . . . Parts Recycled . | . . . Recycled Matter . | . . . Retrieved Matter . | . . . Retrieved Components . | . . . Parts Scanalyzed . | . . . Part Schematics Acquired . | . . . Parts Damaged . | . . . Bothacking | -11 -10 -10 ------------ Run | Yrd Mat Min Used RIF Installer . | . . . Robots Hacked . | . . . Non-combat . | . . . Combat . | . . . Robot Hacks Applied . | . . . Relay Couplers Released . | . . . Fabnet Peak Effective % . | . . . Robots Rewired . | . . . Allies Hacked . | . . . Hacks Repelled . | . . . Allies | -11 -10 -10 -------- Run | Yrd Mat Min Total Allies . | . . . Largest Group . | . . . Highest-Rated Group . | . . . Highest-Rated Ally . | . . . Total Orders . | . . . Ally Attacks . | . . . Total Damage . | . . . Kills . | . . . Allies Corrupted . | . . . Allies Melted . | . . . Intel | -11 -10 -10 ------- Run | Yrd Mat Min Robot Analysis Total 1 | . 1 . Derelict Logs Recovered . | . . . Drone Launches . | . . . Drone Recoveries . | . . . Exploration | -11 -10 -10 ------------- Run | Yrd Mat Min Turns Passed 1550 | 80 1376 94 Spaces Moved 624 | 45 559 20 Core 7 | 7 . . Treads 617 | 38 559 20 Legs . | . . . Wheels . | . . . Hover . | . . . Flight . | . . . Fastest Speed 50 | 50 160 160 Average Speed 160 | 158 160 172 Slowest Speed 240 | 200 160 240 Overloaded Moves . | . . . Propulsion Burnouts . | . . . Robots Hopped . | . . . Cave-ins Triggered . | . . . Exploration Rate (%) 35 | 4 89 14 Regions Visited 2 Branch Regions 1 Pre-discovered Areas 2 | . 2 . Known Exits Taken . | . . . Unknown Exits Taken 2 | 1 1 . Scrap Searched . | . . . Spaces Dug 20 | . 5 15 Terrain Destroyed 69 | . 5 64 Melee 5 | . 5 . Projectile . | . . . AOE 64 | . . 64 Terrain Rammed . | . . . Walls Destroyed . | . . . Machines Disabled . | . . . Actions | -11 -10 -10 --------- Run | Yrd Mat Min Total 1023 | 51 922 50 Wait 261 | . 260 1 Move 622 | 44 558 20 Hop . | . . . Pick Up 14 | 1 13 . Fast Attach 8 | 6 2 . Attach 6 | . 2 4 Detach . | . . . Swap 4 | . 3 1 Drop 6 | . 6 . Fire 68 | . 44 24 Melee 34 | . 34 . Ram . | . . . Kick . | . . . Crush . | . . . Escape Stasis . | . . . Rewire . | . . . Trap . | . . . Miscellaneous . | . . . Route ------- -11/Scrapyard -10/Materials (discovered 3 exits: [*Mat x2] / [*Min]) -10/Mines History --------- Turn | Location | Event 14 | -11/Scrapyard | Discovered new exit (range 15) 81 | -11/Scrapyard | Entered Materials 316 | -10/Materials | Build established: Mutant 432 | -10/Materials | Discovered new exit (range 7) 1134 | -10/Materials | Discovered new exit (range 11) 1201 | -10/Materials | Central database locked down 1438 | -10/Materials | Discovered new exit (range 8) 1457 | -10/Materials | Entered Mines 1463 | -10/Mines | Assembled infested the area 1468 | -10/Mines | Assisted by a Guerilla fighting off Assembled 1494 | -10/Mines | Core integrity fell below 50% 1520 | -10/Mines | Core integrity fell below 20% 1551 | -10/Mines | Destroyed by as-81741 with Assembled Rifle Last Messages --------------- 01499_ as-70671 destroyed. 01499_ Autogun destroyed. 01499_ Destroyed Autogun. 01500_ The unstable cave ceiling collapses. 01501_ Destroyed Asb. Hover Unit. 01503_ as-68193 destroyed. 01507_ as-19075 destroyed. 01507_ as-63609 destroyed. 01507_ Grenade Launcher destroyed. 01511_ Lgt. Treads destroyed. 01512_ as-22364 destroyed. 01512_ Destroyed Asb. F-torch. 01512_ as-35480 destroyed. 01514_ as-73489 destroyed. 01520_ as-94718 destroyed. [Achievement: Exterminator] 01525_ The unstable cave ceiling collapses. 01526_ Grenade Launcher destroyed. 01528_ The unstable cave ceiling collapses. 01536_ as-98523 destroyed. Map ----- +----------------------------------------------------+ | ?????????????????????????????????????????????????? | | ?????????????????????????????????????????????????? | | ?????????????????????????????????????????????????? | | ?????????????????????????????????????????????????? | | ?????????????????????????????????????????????????? | | ?????????????????????????????????????????????????? | | ?????????????????????????????????????????????????? | | ?????????????????????????????????????????????????? | | ?????????????????????????????????????????????????? | | ?????????????????????????????????????????????????? | | ?????????????????????????????????????????????????? | | ????????????????####?????????????????????????????? | | ???????????????## ##????????????????????????????? | | ???????????????# ##???????????????????????????? | | ???????????????# ##??????????????????????????? | | ????????????????# ##?????????????????????????? | | ????????????????## #?????????????????????????? | | ?????????????????## #????###??????????????????? | | ??????????????????## #???# ##?????????????????? | | ????????????????##### #??# #?????????????????? | | ???????????????## ## ### #?????????????????? | | ?????????####### #?????????????????? | | ???????? ur u #?????????????????? | | ???????????##### #?????????????????? | | ???????????????## ##????????????????? | | ????????????????#### @ #????????????????? | | ???????????????????# a# ## #????????????????? | | ???????????????????# % ##????????????????? | | ???????????????????# % # #????????????? | | ???????????????????# #????????????? | | ???????????????????# a a ???????????? | | ???????????????????# ??????????? | | ?????????????????? #####???????????? | | ???????????????? #????????????? | | ???????????????#### #????????????? | | ??????????????????# ###????????????? | | ??????????????????## ####??????????????? | | ???????????????????# ##?????????????????? | | ???????????????????# ##??????????????????? | | ???????????????????## ## ???????????????????? | | ????????????????????###??# ???????????????????? | | ?????????????????????????? ?????????????????????? | | ?????????????????????????????????????????????????? | | ?????????????????????????????????????????????????? | | ?????????????????????????????????????????????????? | | ?????????????????????????????????????????????????? | | ?????????????????????????????????????????????????? | | ?????????????????????????????????????????????????? | | ?????????????????????????????????????????????????? | | ?????????????????????????????????????????????????? | +----------------------------------------------------+ Best States ------------- Heat Dissipation 25 Energy Generation 10 Energy Capacity 250 Matter Stores 300 Matter Capacity 300 Sight Range 16 Terrain Scan Density 10 Utility Shielding 33 Evasion (%) 40 Recoil Reduction 2 Item Schematics ----------------- None Robot Schematics ------------------ None Fabricated ------------ Nothing Alien Tech Used ----------------- None Achievements -------------- Exterminator Challenges ------------ None Game ------ Seed ChargeAntimatterBlade Manual? 0 Play Time 00:11:20 Cumulative 149.7 hours Start 2024.10.28 @ 22:23:25 End 2024.10.28 @ 22:33:04 Sessions 1 Manual Loads 0 Difficulty Rogue Special Mode None Game No. 98 Rogue 62 Adventurer 36 Explorer 0 Win Type - Total 3 Types 2/0/0/1/0/0/0/0/0 Lore% 55 Gallery% 63 Achievement% 55 Wizard Run 0 Options --------- Layout 1 ASCII 0 Keyboard 0 Movement Numpad Keybinds 0 Fullscreen 1 Font 48/Smallcaps Map View 50x35 Zoom Use 0% Tactical HUD 1 Map Filters NONE Filters NONE Steam 1 RUN: ee635ddc-67c4-40f6-91d2-87594e3ae120